fUST/lending_fUST_20250114
["ID","MTS","AMOUNT","RATE_DAILY","PERIOD"]
[348904309,1736868650457,-153.0,0.00022479,2]
[348904310,1736868650466,-227.48,0.00022479,2]
[348904311,1736868650476,-155.0,0.00022479,2]
[348904312,1736868650486,-155.0,0.00022479,2]
[348904313,1736868650495,-155.0,0.00022479,2]
[348904314,1736868650505,-155.0,0.00022479,2]
[348904315,1736868650515,-155.0,0.00022479,2]
[348904316,1736868650524,-171.19,0.00022479,2]
[348904317,1736868650534,-151.0,0.000225,5]
[348904318,1736868650544,-1000.0,0.00022521,2]
[348904319,1736868650553,-211.01606803,0.00022521,2]
[348904320,1736868650562,-964.02616037,0.00022569,2]
[348904321,1736868650573,-211.01606803,0.0002259,2]
[348904322,1736868650583,-151.0,0.000226,10]
[348904323,1736868650593,-159.8236228,0.00022601,2]
[348904324,1736868650602,-53829.66369384,0.00022601,5]
[348904325,1736868650611,-6385.20993598,0.00022601,5]
[348904326,1736868650621,-151.0,0.00022602,7]
[348904327,1736868650631,-500.0,0.00022602,3]
[348904328,1736868650641,-500.0,0.00022602,3]
[348904329,1736868650651,-500.0,0.00022602,3]
[348904330,1736868650661,-500.0,0.00022602,3]
[348904331,1736868650671,-500.0,0.00022602,3]
[348904332,1736868650680,-500.0,0.00022602,3]
[348904333,1736868650822,-500.0,0.00022602,3]
[348904334,1736868650832,-266.31806051,0.00022602,3]
[348904335,1736868650842,-500.0,0.00022602,3]
[348904336,1736868650852,-500.0,0.00022602,3]
[348904337,1736868650862,-500.0,0.00022602,3]
[348904338,1736868650872,-500.0,0.00022602,3]
[348904339,1736868650881,-500.0,0.00022602,3]
[348904340,1736868650892,-554.6,0.00022602,3]
[348904341,1736868650902,-3932.12,0.00022602,3]
[348904342,1736868650911,-645.48,0.00022602,3]
[348904343,1736868650921,-3768.28,0.00022602,3]
[348904344,1736868650931,-1202.4,0.00022602,3]
[348904345,1736868650941,-779.88,0.00022602,3]
[348904346,1736868650951,-612.07,0.00022602,3]
[348904347,1736868650960,-500.0,0.00022602,3]
[348904348,1736868650970,-500.0,0.00022602,3]
[348904349,1736868650979,-793.51,0.00022602,3]
[348904350,1736868650989,-546.51,0.00022602,3]
[348904351,1736868650999,-571.65,0.00022602,3]
[348904352,1736868651009,-534.63,0.00022602,3]
[348904353,1736868651019,-2630.07,0.00022602,3]
[348904354,1736868651028,-500.0,0.00022602,3]
[348904355,1736868651038,-500.0,0.00022602,3]
[348904356,1736868651047,-615.92,0.00022602,3]
[348904357,1736868651057,-500.0,0.00022602,3]
[348904358,1736868651066,-500.0,0.00022602,3]
[348904359,1736868651076,-500.0,0.00022602,3]
[348904360,1736868651085,-500.0,0.00022602,3]
[348904361,1736868651095,-500.0,0.00022602,3]
[348904362,1736868651104,-572.53,0.00022602,3]
[348904363,1736868651114,-500.0,0.00022602,3]
[348904364,1736868651125,-1372.86,0.00022602,3]
[348904365,1736868651135,-608.80113182,0.00022602,2]
[348904366,1736868651144,-415.49832134,0.00022602,3]
[348904367,1736868651154,-500.0,0.00022602,3]
[348904368,1736868651163,-500.0,0.00022602,3]
[348904369,1736868651173,-500.0,0.00022602,3]
[348904370,1736868651182,-850.61,0.00022602,3]
[348904371,1736868651192,-552.33,0.00022602,3]
[348904372,1736868651201,-500.0,0.00022602,3]
[348904373,1736868651211,-6280.18,0.00022602,3]
[348904374,1736868651220,-500.0,0.00022602,3]
[348904375,1736868651230,-513.5,0.00022602,3]
[348904376,1736868651239,-100056.4,0.00022602,3]
[348904377,1736868651249,-733.01,0.00022602,3]
[348904378,1736868651258,-203.12256198,0.00022602,3]
[348904379,1736868651268,-1030.31,0.00022602,3]
[348904380,1736868651277,-489.99579047,0.00022602,3]
[348904381,1736868651287,-500.0,0.00022602,3]
[348904382,1736868651296,-500.0,0.00022602,3]
[348904383,1736868651306,-500.0,0.00022602,3]
[348904384,1736868651316,-795.65,0.00022602,3]
[348904385,1736868651325,-500.0,0.00022602,3]
[348904386,1736868651335,-807.22,0.00022602,3]
[348904387,1736868651344,-958.11,0.00022602,3]
[348904388,1736868651353,-511.75,0.00022602,3]
[348904389,1736868651363,-624.77,0.00022602,3]
[348904390,1736868651373,-594.49,0.00022602,3]
[348904391,1736868651384,-1126.39,0.00022602,3]
[348904392,1736868651394,-500.0,0.00022602,3]
[348904393,1736868651403,-598.09249361,0.00022602,3]
[348904394,1736868651413,-500.0,0.00022602,3]
[348904395,1736868651423,-1354.68,0.00022602,3]
[348904396,1736868651434,-500.0,0.00022602,3]
[348904397,1736868651446,-670.2,0.00022602,3]
[348904398,1736868651456,-5829.81,0.00022602,3]
[348904399,1736868651465,-500.0,0.00022602,3]
[348904400,1736868651475,-861.16,0.00022602,3]
[348904401,1736868651485,-500.0,0.00022602,3]
[348904402,1736868651495,-500.0,0.00022602,3]
[348904403,1736868651507,-500.0,0.00022602,3]
[348904404,1736868651517,-500.0,0.00022602,3]
[348904405,1736868651527,-15446.98,0.00022602,2]
[348904406,1736868651537,-500.0,0.00022602,3]
[348904407,1736868651547,-809.13,0.00022602,3]
[348904408,1736868651559,-500.0,0.00022602,3]
[348904409,1736868651568,-819.78,0.00022602,3]
[348904410,1736868651577,-2258.25,0.00022602,3]
[348904411,1736868651590,-2645.94,0.00022602,2]
[348904412,1736868651600,-500.0,0.00022602,3]
[348904413,1736868651610,-3943.85,0.00022602,3]
[348904414,1736868651619,-679.18,0.00022602,3]
[348904415,1736868651629,-28763.14,0.00022602,3]
[348904416,1736868651638,-500.0,0.00022602,3]
[348904417,1736868651649,-500.0,0.00022602,3]
[348904418,1736868651660,-500.0,0.00022602,3]
[348904419,1736868651671,-1183.34,0.00022602,3]
[348904420,1736868651680,-500.0,0.00022602,3]
[348904421,1736868651690,-500.0,0.00022602,3]
[348904422,1736868651700,-627.75,0.00022602,3]
[348904423,1736868651710,-654.14,0.00022602,3]
[348904424,1736868651719,-500.0,0.00022602,3]
[348904425,1736868651729,-1551.26,0.00022602,3]
[348904426,1736868651738,-500.0,0.00022602,3]
[348904427,1736868651748,-500.0,0.00022602,3]
[348904428,1736868651758,-958.77,0.00022602,3]
[348904429,1736868651767,-500.0,0.00022602,3]
[348904430,1736868651777,-1475.28,0.00022602,3]
[348904431,1736868651787,-647.9,0.00022602,3]
[348904432,1736868651796,-581.2,0.00022602,3]
[348904433,1736868651805,-1195.31,0.00022602,3]
[348904434,1736868651815,-500.0,0.00022602,3]
[348904435,1736868651824,-500.0,0.00022602,3]
[348904436,1736868651833,-500.0,0.00022602,3]
[348904437,1736868651843,-500.0,0.00022602,3]
[348904438,1736868651853,-500.0,0.00022602,3]
[348904439,1736868651864,-500.0,0.00022602,3]
[348904440,1736868651874,-2389.46,0.00022602,3]
[348904441,1736868651883,-656.19,0.00022602,3]
[348904442,1736868651893,-636.07,0.00022602,3]
[348904443,1736868651903,-500.0,0.00022602,3]
[348904444,1736868651914,-2727.96,0.00022602,3]
[348904445,1736868651923,-500.0,0.00022602,3]
[348904446,1736868651932,-1358.32,0.00022602,3]
[348904447,1736868651942,-500.0,0.00022602,3]
[348904448,1736868651952,-1127.51,0.00022602,3]
[348904449,1736868651961,-1623.19,0.00022602,3]
[348904450,1736868651971,-500.0,0.00022602,3]
[348904451,1736868651981,-500.0,0.00022602,3]
[348904452,1736868651990,-1291.14,0.00022602,3]
[348904453,1736868652000,-211.01606803,0.00022659,2]
[348904454,1736868652011,-151.0,0.000227,5]
[348904455,1736868652021,-500.0,0.00022721,2]
[348904456,1736868652030,-1000.0,0.00022721,2]
[348904457,1736868652040,-1000.0,0.00022721,2]
[348904458,1736868652050,-1000.0,0.00022721,2]
[348904459,1736868652059,-1000.0,0.00022721,2]
[348904460,1736868652069,-992.61513423,0.00022721,2]
[348904461,1736868652078,-1000.0,0.00022721,2]
[348904462,1736868652088,-571.83365958,0.00022721,2]
[348904463,1736868652097,-151.0,0.00022721,7]
[348904464,1736868652106,-151.0,0.00022721,7]
[348904465,1736868652121,-211.01606803,0.00022728,2]
[348904466,1736868652131,-261.500707,0.00022739,7]
[348904467,1736868652141,-500.0,0.00022739,3]
[348904468,1736868652150,-500.0,0.00022739,3]
[348904469,1736868652159,-500.0,0.00022739,3]
[348904470,1736868652170,-200.1037843,0.00022739,3]
[348904471,1736868652179,-500.0,0.00022739,3]
[348904472,1736868652189,-500.0,0.00022739,3]
[348904473,1736868652198,-500.0,0.00022739,3]
[348904474,1736868652208,-500.0,0.00022739,3]
[348904475,1736868652219,-500.0,0.00022739,3]
[348904476,1736868652227,-500.0,0.00022739,3]
[348904477,1736868652237,-500.0,0.00022739,3]
[348904478,1736868652247,-500.0,0.00022739,3]
[348904479,1736868652256,-554.6,0.00022739,3]
[348904480,1736868652265,-3932.12,0.00022739,3]
[348904481,1736868652275,-645.48,0.00022739,3]
[348904482,1736868652284,-1202.4,0.00022739,3]
[348904483,1736868652294,-779.88,0.00022739,3]
[348904484,1736868652303,-612.07,0.00022739,3]
[348904485,1736868652312,-500.0,0.00022739,3]
[348904486,1736868652322,-500.0,0.00022739,3]
[348904487,1736868652331,-793.51,0.00022739,3]
[348904488,1736868652340,-224.04567374,0.00022739,3]
[348904489,1736868652350,-546.51,0.00022739,3]
[348904490,1736868652360,-571.65,0.00022739,3]
[348904491,1736868652373,-534.63,0.00022739,3]
[348904492,1736868652383,-2630.07,0.00022739,3]
[348904493,1736868652392,-500.0,0.00022739,3]
[348904494,1736868652402,-500.0,0.00022739,3]
[348904495,1736868652411,-615.92,0.00022739,3]
[348904496,1736868652421,-500.0,0.00022739,3]
[348904497,1736868652431,-500.0,0.00022739,3]
[348904498,1736868652440,-500.0,0.00022739,3]
[348904499,1736868652449,-500.0,0.00022739,3]
[348904500,1736868652459,-500.0,0.00022739,3]
[348904501,1736868652468,-572.53,0.00022739,3]
[348904502,1736868652477,-500.0,0.00022739,3]
[348904503,1736868652486,-1372.86,0.00022739,3]
[348904504,1736868652496,-583.26175938,0.00022739,3]
[348904505,1736868652506,-500.0,0.00022739,3]
[348904506,1736868652515,-500.0,0.00022739,3]
[348904507,1736868652525,-850.61,0.00022739,3]
[348904508,1736868652534,-552.33,0.00022739,3]
[348904509,1736868652543,-500.0,0.00022739,3]
[348904510,1736868652553,-6280.18,0.00022739,3]
[348904511,1736868652562,-500.0,0.00022739,3]
[348904512,1736868652572,-513.5,0.00022739,3]
[348904513,1736868652582,-100056.4,0.00022739,3]
[348904514,1736868652591,-733.01,0.00022739,3]
[348904515,1736868652601,-1030.31,0.00022739,3]
[348904516,1736868652611,-500.0,0.00022739,3]
[348904517,1736868652621,-500.0,0.00022739,3]
[348904518,1736868652631,-500.0,0.00022739,3]
[348904519,1736868652640,-795.65,0.00022739,3]
[348904520,1736868652650,-500.0,0.00022739,3]
[348904521,1736868652659,-807.22,0.00022739,3]
[348904522,1736868652669,-958.11,0.00022739,3]
[348904523,1736868652678,-511.75,0.00022739,3]
[348904524,1736868652687,-624.77,0.00022739,3]
[348904525,1736868652697,-594.49,0.00022739,3]
[348904526,1736868652707,-1126.39,0.00022739,3]
[348904527,1736868652717,-500.0,0.00022739,3]
[348904528,1736868652726,-500.0,0.00022739,3]
[348904529,1736868652735,-1354.68,0.00022739,3]
[348904530,1736868652745,-500.0,0.00022739,3]
[348904531,1736868652754,-670.2,0.00022739,3]
[348904532,1736868652764,-5829.81,0.00022739,3]
[348904533,1736868652774,-500.0,0.00022739,3]
[348904534,1736868652783,-861.16,0.00022739,3]
[348904535,1736868652792,-500.0,0.00022739,3]
[348904536,1736868652802,-500.0,0.00022739,3]
[348904537,1736868652812,-500.0,0.00022739,3]
[348904538,1736868652821,-15446.98,0.00022739,2]
[348904539,1736868652831,-500.0,0.00022739,3]
[348904540,1736868652841,-809.13,0.00022739,3]
[348904541,1736868652851,-500.0,0.00022739,3]
[348904542,1736868652862,-819.78,0.00022739,3]
[348904543,1736868652873,-2258.25,0.00022739,3]
[348904544,1736868652883,-2645.94,0.00022739,2]
[348904545,1736868652894,-500.0,0.00022739,3]
[348904546,1736868652904,-3943.85,0.00022739,3]
[348904547,1736868652915,-679.18,0.00022739,3]
[348904548,1736868652925,-28763.14,0.00022739,3]
[348904549,1736868652936,-500.0,0.00022739,3]
[348904550,1736868652946,-500.0,0.00022739,3]
[348904551,1736868652955,-500.0,0.00022739,3]
[348904552,1736868652965,-1183.34,0.00022739,3]
[348904553,1736868652975,-500.0,0.00022739,3]
[348904554,1736868652985,-500.0,0.00022739,3]
[348904555,1736868652994,-627.75,0.00022739,3]
[348904556,1736868653004,-654.14,0.00022739,3]
[348904557,1736868653013,-500.0,0.00022739,3]
[348904558,1736868653022,-1551.26,0.00022739,3]
[348904559,1736868653032,-500.0,0.00022739,3]
[348904560,1736868653042,-500.0,0.00022739,3]
[348904561,1736868653052,-958.77,0.00022739,3]
[348904562,1736868653061,-500.0,0.00022739,3]
[348904563,1736868653071,-1475.28,0.00022739,3]
[348904564,1736868653080,-647.9,0.00022739,3]
[348904565,1736868653090,-581.2,0.00022739,3]
[348904566,1736868653099,-1195.31,0.00022739,3]
[348904567,1736868653109,-500.0,0.00022739,3]
[348904568,1736868653124,-500.0,0.00022739,3]
[348904569,1736868653133,-500.0,0.00022739,3]
[348904570,1736868653142,-500.0,0.00022739,3]
[348904571,1736868653152,-500.0,0.00022739,3]
[348904572,1736868653162,-385.57736342,0.00022739,3]
[348904573,1736868653171,-2389.46,0.00022739,3]
[348904574,1736868653181,-656.19,0.00022739,3]
[348904575,1736868653190,-636.07,0.00022739,3]
[348904576,1736868653200,-500.0,0.00022739,3]
[348904577,1736868653210,-500.0,0.00022739,3]
[348904578,1736868653219,-2727.96,0.00022739,3]
[348904579,1736868653229,-150.23,0.00022739,3]
[348904580,1736868653268,-150.23,0.00022739,2]
[348904581,1736868653278,-500.0,0.00022739,3]
[348904582,1736868653287,-1358.32,0.00022739,3]
[348904583,1736868653296,-150.23,0.00022739,3]
[348904584,1736868653305,-500.0,0.00022739,3]
[348904585,1736868653314,-1127.51,0.00022739,3]
[348904586,1736868653323,-1623.19,0.00022739,3]
[348904587,1736868653332,-500.0,0.00022739,3]
[348904588,1736868653341,-500.0,0.00022739,3]
[348904589,1736868653350,-1291.14,0.00022739,3]
[348904590,1736868653359,-211.01606803,0.00022797,2]
[348904591,1736868653372,-314558.85730361,0.000228,10]
[348904592,1736868653381,-2000.0,0.000228,2]
[348904593,1736868653395,-4490.06,0.000228,14]
[348904594,1736868653404,-1763.86,0.000228,14]
[348904595,1736868653413,-9379.28,0.000228,2]
[348904596,1736868653423,-3000.0,0.000228,2]
[348904597,1736868653431,-2000.0,0.000228,2]
[348904598,1736868653441,-3000.0,0.0002281,2]
[348904599,1736868653451,-964.02616037,0.00022819,2]
[348904600,1736868653460,-3000.0,0.0002282,2]
[348904601,1736868653469,-3000.0,0.0002283,2]
[348904602,1736868653478,-3000.0,0.0002284,2]
[348904603,1736868653487,-3000.0,0.0002285,2]
[348904604,1736868653496,-3000.0,0.0002286,2]
[348904605,1736868653505,-211.01606803,0.00022866,2]
[348904606,1736868653515,-13666.23441651,0.0002287,2]
[348904607,1736868653525,-3000.0,0.0002287,2]
[348904608,1736868653536,-500.0,0.00022876,3]
[348904609,1736868653545,-500.0,0.00022876,3]
[348904610,1736868653555,-500.0,0.00022876,3]
[348904611,1736868653564,-500.0,0.00022876,3]
[348904612,1736868653573,-500.0,0.00022876,3]
[348904613,1736868653583,-500.0,0.00022876,3]
[348904614,1736868653593,-500.0,0.00022876,3]
[348904615,1736868653603,-500.0,0.00022876,3]
[348904616,1736868653614,-599.38186986,0.00022876,3]
[348904617,1736868653624,-518.05501425,0.00022876,3]
[348904618,1736868653633,-500.0,0.00022876,3]
[348904619,1736868653642,-554.6,0.00022876,3]
[348904620,1736868653651,-3932.12,0.00022876,3]
[348904621,1736868653660,-645.48,0.00022876,3]
[348904622,1736868653670,-1202.4,0.00022876,3]
[348904623,1736868653681,-779.88,0.00022876,3]
[348904624,1736868653691,-612.07,0.00022876,3]
[348904625,1736868653700,-500.0,0.00022876,3]
[348904626,1736868653710,-500.0,0.00022876,3]
[348904627,1736868653719,-793.51,0.00022876,3]
[348904628,1736868653729,-546.51,0.00022876,3]
[348904629,1736868653738,-571.65,0.00022876,3]
[348904630,1736868653748,-534.63,0.00022876,3]
[348904631,1736868653758,-2630.07,0.00022876,3]
[348904632,1736868653767,-500.0,0.00022876,3]
[348904633,1736868653776,-500.0,0.00022876,3]
[348904634,1736868653785,-615.92,0.00022876,3]
[348904635,1736868653795,-500.0,0.00022876,3]
[348904636,1736868653804,-500.0,0.00022876,3]
[348904637,1736868653814,-500.0,0.00022876,3]
[348904638,1736868653823,-500.0,0.00022876,3]
[348904639,1736868653833,-500.0,0.00022876,3]
[348904640,1736868653843,-572.53,0.00022876,3]
[348904641,1736868653852,-500.0,0.00022876,3]
[348904642,1736868653861,-1372.86,0.00022876,3]
[348904643,1736868653874,-500.0,0.00022876,3]
[348904644,1736868653885,-500.0,0.00022876,3]
[348904645,1736868653895,-850.61,0.00022876,3]
[348904646,1736868653904,-552.33,0.00022876,3]
[348904647,1736868653914,-500.0,0.00022876,3]
[348904648,1736868653925,-6280.18,0.00022876,3]
[348904649,1736868653934,-500.0,0.00022876,3]
[348904650,1736868653944,-513.5,0.00022876,3]
[348904651,1736868653953,-100056.4,0.00022876,3]
[348904652,1736868653963,-733.01,0.00022876,3]
[348904653,1736868653973,-1030.31,0.00022876,3]
[348904654,1736868653983,-434.86293898,0.00022876,3]
[348904655,1736868653992,-500.0,0.00022876,3]
[348904656,1736868654001,-500.0,0.00022876,3]
[348904657,1736868654010,-795.65,0.00022876,3]
[348904658,1736868654020,-500.0,0.00022876,3]
[348904659,1736868654029,-807.22,0.00022876,3]
[348904660,1736868654039,-958.11,0.00022876,3]
[348904661,1736868654048,-511.75,0.00022876,3]
[348904662,1736868654058,-624.77,0.00022876,3]
[348904663,1736868654067,-594.49,0.00022876,3]
[348904664,1736868654076,-1126.39,0.00022876,3]
[348904665,1736868654086,-500.0,0.00022876,3]
[348904666,1736868654095,-500.0,0.00022876,3]
[348904667,1736868654104,-1354.68,0.00022876,3]
[348904668,1736868654117,-500.0,0.00022876,3]
[348904669,1736868654130,-670.2,0.00022876,3]
[348904670,1736868654139,-5829.81,0.00022876,3]
[348904671,1736868654149,-500.0,0.00022876,3]
[348904672,1736868654160,-861.16,0.00022876,3]
[348904673,1736868654169,-500.0,0.00022876,3]
[348904674,1736868654178,-500.0,0.00022876,3]
[348904675,1736868654188,-500.0,0.00022876,3]
[348904676,1736868654198,-15446.98,0.00022876,2]
[348904677,1736868654207,-500.0,0.00022876,3]
[348904678,1736868654216,-809.13,0.00022876,3]
[348904679,1736868654225,-500.0,0.00022876,3]
[348904680,1736868654234,-819.78,0.00022876,3]
[348904681,1736868654244,-2258.25,0.00022876,3]
[348904682,1736868654254,-2645.94,0.00022876,2]
[348904683,1736868654265,-500.0,0.00022876,3]
[348904684,1736868654277,-3943.85,0.00022876,3]
[348904685,1736868654287,-679.18,0.00022876,3]
[348904686,1736868654298,-28763.14,0.00022876,3]
[348904687,1736868654308,-500.0,0.00022876,3]
[348904688,1736868654318,-500.0,0.00022876,3]
[348904689,1736868654329,-500.0,0.00022876,3]
[348904690,1736868654339,-1183.34,0.00022876,3]
[348904691,1736868654348,-384.56882364,0.00022876,3]
[348904692,1736868654357,-500.0,0.00022876,3]
[348904693,1736868654369,-627.75,0.00022876,3]
[348904694,1736868654378,-654.14,0.00022876,3]
[348904695,1736868654388,-500.0,0.00022876,3]
[348904696,1736868654397,-1551.26,0.00022876,3]
[348904697,1736868654409,-500.0,0.00022876,3]
[348904698,1736868654420,-500.0,0.00022876,3]
[348904699,1736868654431,-958.77,0.00022876,3]
[348904700,1736868654441,-500.0,0.00022876,3]
[348904701,1736868654452,-1475.28,0.00022876,3]
[348904702,1736868654462,-647.9,0.00022876,3]
[348904703,1736868654472,-581.2,0.00022876,3]
[348904704,1736868654482,-500.0,0.00022876,3]
[348904705,1736868654492,-1195.31,0.00022876,3]
[348904706,1736868654502,-500.0,0.00022876,3]
[348904707,1736868654511,-500.0,0.00022876,3]
[348904708,1736868654521,-500.0,0.00022876,3]
[348904709,1736868654531,-500.0,0.00022876,3]
[348904710,1736868654540,-2389.46,0.00022876,3]
[348904711,1736868654550,-636.07,0.00022876,3]
[348904712,1736868654559,-656.19,0.00022876,3]
[348904713,1736868654569,-500.0,0.00022876,3]
[348904714,1736868654579,-2727.96,0.00022876,3]
[348904715,1736868654589,-500.0,0.00022876,3]
[348904716,1736868654598,-1358.32,0.00022876,3]
[348904717,1736868654607,-500.0,0.00022876,3]
[348904718,1736868654619,-1127.51,0.00022876,3]
[348904719,1736868654629,-1623.19,0.00022876,3]
[348904720,1736868654638,-500.0,0.00022876,3]
[348904721,1736868654647,-500.0,0.00022876,3]
[348904722,1736868654656,-1291.14,0.00022876,3]
[348904723,1736868654666,-3000.0,0.0002288,2]
[348904724,1736868654676,-3000.0,0.0002289,2]
[348904725,1736868654685,-3000.0,0.000229,2]
[348904726,1736868654695,-3000.0,0.0002291,2]
[348904727,1736868654704,-6726.00612602,0.00022916,2]
[348904728,1736868654714,-5000.0,0.00022916,2]
[348904729,1736868654723,-5000.0,0.00022916,2]
[348904730,1736868654733,-5000.0,0.00022916,2]
[348904731,1736868654742,-5000.0,0.00022916,2]
[348904732,1736868654752,-3000.0,0.0002292,2]
[348904733,1736868654763,-3000.0,0.0002293,2]
[348904734,1736868654774,-211.01606803,0.00022934,2]
[348904735,1736868654785,-4374.054997,0.0002294,2]
[348904736,1736868654795,-155.01989274,0.00022965,2]
[348904737,1736868654804,-500.0,0.00022973,2]
[348904738,1736868654814,-500.0,0.00022973,2]
[348904739,1736868654825,-500.0,0.00022973,2]
[348904740,1736868654834,-500.0,0.00022973,2]
[348904741,1736868654843,-500.0,0.00022973,2]
[348904742,1736868654853,-153.01,0.00022975,2]
[348904743,1736868654865,-314.85119759,0.00022988,2]
[348904744,1736868654875,-2893.11156006,0.00023,7]
[348904745,1736868654885,-7438.69753278,0.00023,2]
[348904746,1736868654895,-1000.0,0.00023,23]
[348904747,1736868654905,-905.2,0.00023,14]
[348904748,1736868654915,-419677.87400338,0.00023,2]
[348904749,1736868654925,-16135.58701913,0.00023,17]
[348904750,1736868654935,-2006.0,0.00023,7]
[348904751,1736868654945,-500.0,0.00023,4]
[348904752,1736868654955,-1500.0,0.00023,2]
[348904753,1736868654965,-1500.0,0.00023,2]
[348904754,1736868654974,-1500.0,0.00023,2]
[348904755,1736868654984,-1500.0,0.00023,2]
[348904756,1736868654993,-1500.0,0.00023,2]
[348904757,1736868655004,-1500.0,0.00023,2]
[348904758,1736868655014,-1500.0,0.00023,2]
[348904759,1736868655024,-1500.0,0.00023,2]
[348904760,1736868655035,-1650.72,0.00023,2]
[348904761,1736868655045,-1500.0,0.00023,2]
[348904762,1736868655055,-1500.0,0.00023,2]
[348904763,1736868655065,-500.0,0.00023,2]
[348904764,1736868655075,-500.0,0.00023,2]
[348904765,1736868655085,-500.0,0.00023,2]
[348904766,1736868655096,-500.0,0.00023,2]
[348904767,1736868655106,-500.0,0.00023,2]
[348904768,1736868655121,-391.0,0.00023,2]
[348904769,1736868655131,-7438.69753278,0.00023,3]
[348904770,1736868655141,-316.42464761,0.00023,2]
[348904771,1736868655151,-211.01606803,0.00023003,2]
[348904772,1736868655161,-500.0,0.00023013,3]
[348904773,1736868655171,-150.23,0.00023013,3]
[348904774,1736868655181,-217.22350704,0.00023013,3]
[348904775,1736868655192,-500.0,0.00023013,3]
[348904776,1736868655202,-500.0,0.00023013,3]
[348904777,1736868655215,-500.0,0.00023013,3]
[348904778,1736868655224,-500.0,0.00023013,3]
[348904779,1736868655234,-500.0,0.00023013,3]
[348904780,1736868655244,-500.0,0.00023013,3]
[348904781,1736868655255,-500.0,0.00023013,3]
[348904782,1736868655265,-500.0,0.00023013,3]
[348904783,1736868655276,-500.0,0.00023013,3]
[348904784,1736868655285,-554.6,0.00023013,3]
[348904785,1736868655295,-3932.12,0.00023013,3]
[348904786,1736868655305,-645.48,0.00023013,3]
[348904787,1736868655315,-1202.4,0.00023013,3]
[348904788,1736868655325,-779.88,0.00023013,3]
[348904789,1736868655335,-612.07,0.00023013,3]
[348904790,1736868655345,-500.0,0.00023013,3]
[348904791,1736868655355,-500.0,0.00023013,3]
[348904792,1736868655366,-793.51,0.00023013,3]
[348904793,1736868655375,-546.51,0.00023013,3]
[348904794,1736868655385,-571.65,0.00023013,3]
[348904795,1736868655395,-534.63,0.00023013,3]
[348904796,1736868655405,-2630.07,0.00023013,3]
[348904797,1736868655414,-500.0,0.00023013,3]
[348904798,1736868655424,-418.9425068,0.00023013,3]
[348904799,1736868655434,-615.92,0.00023013,3]
[348904800,1736868655444,-272.90112709,0.00023013,3]
[348904801,1736868655453,-500.0,0.00023013,3]
[348904802,1736868655463,-500.0,0.00023013,3]
[348904803,1736868655473,-500.0,0.00023013,3]
[348904804,1736868655483,-500.0,0.00023013,3]
[348904805,1736868655492,-572.53,0.00023013,3]
[348904806,1736868655502,-500.0,0.00023013,3]
[348904807,1736868655512,-1372.86,0.00023013,3]
[348904808,1736868655522,-500.0,0.00023013,3]